Cogmind - Beta 15 --- EXPLORER MODE // 2025.06.01 @ 02:39:28 Player: tcfire Result: Self-destructed Performance ------------- Evolutions (1) 500 Regions Visited (2) 400 Robots Destroyed (16) 80 Value Destroyed (461) 461 Prototype IDs (0) 0 Alien Tech Used (0) 0 Bonus (0) 0 TOTAL SCORE: 1441 Bonus ------- None Cogmind --------- Core Integrity 358/400 Matter 290/300 Energy 27/100 System Corruption 0% Temperature Cool (18) Movement Core (300) Ox5 Location -9/Materials Parts ------- > --- POWER (1) -------- (None) > --- PROPULSION (3) --- Aluminum Leg Aluminum Leg Aluminum Leg > --- UTILITY (4) ------ Improved Heat Sink Medium Storage Unit Power Shielding > --- WEAPON (2) ------- EM Shotgun Medium Laser > --- INVENTORY (10) --- (None) Peak State ------------ > --- POWER ------------ Light Ion Engine > --- PROPULSION ------- Aluminum Leg Aluminum Leg Aluminum Leg > --- UTILITY ---------- Improved Heat Sink Medium Storage Unit Power Shielding > --- WEAPON ----------- Medium Laser Medium Laser > --- INVENTORY -------- (None) [Rating: 11] Favorites ----------- Power Light Ion Engine Engine Light Ion Engine Propulsion Aluminum Leg Leg Aluminum Leg Utility Medium Storage Unit Device Improved Heat Sink Storage Medium Storage Unit Protection Power Shielding Weapon Medium Laser Energy Gun Medium Laser Build | -11 -10 -9 ------- Run | Yrd Mat Mat Slots Evolved 3 | . 1 2 Power . | . . . Propulsion 1 | . . 1 Utility 2 | . 1 1 Weapon . | . . . Parts Attached 12 | 7 1 4 Power 1 | 1 . . Engine 1 | 1 . . Core . | . . . Reactor . | . . . Propulsion 5 | 2 . 3 Treads . | . . . Leg 5 | 2 . 3 Wheel . | . . . Hover . | . . . Flight . | . . . Utility 3 | 2 1 . Device 1 | . 1 . Storage 1 | 1 . . Processor . | . . . Hackware . | . . . Protection 1 | 1 . . Artifact . | . . . Weapon 3 | 2 . 1 Energy Gun 3 | 2 . 1 Energy Cannon . | . . . Ballistic Gun . | . . . Ballistic Cannon . | . . . Launcher . | . . . Special Weapon . | . . . Impact Weapon . | . . . Slashing Weapon . | . . . Piercing Weapon . | . . . Special Melee Weapon . | . . . Unidentified Prototypes . | . . . Parts Lost 1 | . . 1 Power 1 | . . 1 Propulsion . | . . . Utility . | . . . Weapon . | . . . Highest Loss Streak 1 | . . 1 To Critical Strikes . | . . . Average Backups . | . . . Power . | . . . Propulsion . | . . . Utility . | . . . Weapon . | . . . Tool/Special . | . . . Unused Backups . | . . . Power . | . . . Propulsion . | . . . Utility . | . . . Weapon . | . . . Tool/Special . | . . . Average Slot Usage (%) 86 | . 91 83 Engine 9 | . 12 7 Leg 25 | . 25 25 Device 7 | . 4 10 Storage 10 | . 12 10 Protection 10 | . 12 10 Energy Gun 22 | . 25 20 Peak Build Rating 11 | 7 10 11 Average Rating 8 | 3 8 10 On Entrance 5 | . 7 10 Naked Turns . | . . . Heaviest Build 19 | 18 19 19 Greatest Support 30 | 20 20 30 Greatest Overweight (x) . | . . . Average Overweight (x) . | . . . Largest Inventory Capacity 10 | 10 10 10 Average Capacity 9 | 6 10 10 Most Carried 3 | 3 1 1 Average Carried . | . . . Final Capacity 10 | 10 10 10 Final Carried . | . . . Class Distribution -------------------- 100% | Hacker-Mutant Dominant Class ---------------- Hacker-Mutant | -10/Materials Hacker-Mutant | -9/Materials Resources | -11 -10 -9 ----------- Run | Yrd Mat Mat Matter Collected 310 | 45 214 51 Remotely . | . . . Salvage Created 567 | . 189 378 Parts 28 | . 11 17 Haulers Intercepted 1 | . 1 . Recyclers Shooed 1 | . . 1 Parts Field Recycled . | . . . Retrieved Matter . | . . . Parts Self-Destructed . | . . . Prevented . | . . . Kills | -11 -10 -9 ------- Run | Yrd Mat Mat Combat Hostiles Destroyed 11 | . 2 9 Guns 8 | . 2 6 Classes Destroyed 5 | . 3 2 Hauler 1 | . 1 . Watcher 4 | . 3 1 Swarmer 2 | . . 2 Grunt 6 | . 2 4 Sentry 3 | . . 3 Best Kill Streak 7 | . 3 7 Combat Bots Only 6 | . 2 6 Max Kills in Single Turn 1 | . 1 1 Gunslinging . | . . . Exploded . | . . . Melee . | . . . Uniques/NPCs Destroyed . | . . . Combat | -11 -10 -9 -------- Run | Yrd Mat Mat Hostile Shots Fired 75 | . 30 45 Missed 23 | . 12 11 Hits 52 | . 18 34 Projectile 52 | . 18 34 Critical Strikes 2 | . . 2 Actively Blocked 1 | . . 1 Damage Taken 440 | . 130 310 Core 82 | . 40 42 Absorbed by Shields . | . . . Redirected to Shielding 15 | . 6 9 Ignored by Resistances 274 | . 83 191 Core Remaining (%) 92 | 100 84 . Volleys Fired 55 | . 24 31 Largest 2 | . 2 2 Hottest 100 | . 100 100 Shots Fired 110 | . 48 62 Gun 110 | . 48 62 Cannon . | . . . Launcher . | . . . Special . | . . . Kinetic . | . . . Thermal 108 | . 48 60 Explosive . | . . . Electromagnetic 2 | . . 2 Robot Hit Streak 19 | . 10 19 Robot Miss Streak 4 | . 4 3 Penetration Max . | . . . Secondary Targets 3 | . 1 2 Max Gunslinging Chain 1 | . 1 1 Shots Hit Robots 78 | . 30 48 Core Hits 29 | . 10 19 Critical Kills . | . . . Critical Parts Destroyed . | . . . Critical Strikes 8 | . 1 7 Burn 8 | . 1 7 Melee Attacks . | . . . Impact . | . . . Slashing . | . . . Piercing . | . . . Sneak Attacks . | . . . Combat Hostiles . | . . . Follow-up Attacks . | . . . Damage Inflicted 1027 | . 398 629 Guns 1027 | . 398 629 Cannons . | . . . Explosions . | . . . Melee . | . . . Ramming . | . . . Kinetic . | . . . Thermal 988 | . 398 590 Explosive . | . . . Electromagnetic 39 | . . 39 Impact . | . . . Slashing . | . . . Piercing . | . . . Highest Corruption . | . . . Average Corruption . | . . . Corruption Purged . | . . . Corruption Blocked . | . . . Overload Shots . | . . . Overflow Damage . | . . . Projectiles . | . . . Explosions . | . . . Melee . | . . . Knockbacks . | . . . Impact . | . . . Kinetic . | . . . Secondary . | . . . Self-Inflicted Damage . | . . . Shots . | . . . Rammed . | . . . Targets Rammed . | . . . Kicked . | . . . Crushed . | . . . Highest Temperature 442 | . 442 27 Average Temperature 181 | . 245 7 Received Heat Transfer 333 | . 120 213 Siege Activations . | . . . Martial Activations . | . . . Shielding Activations . | . . . Robots Disrupted . | . . . Combat Hostiles . | . . . Robots Corrupted . | . . . Combat Hostiles . | . . . Parts Fried . | . . . Impact Corruptions . | . . . Robots Melted 3 | . . 3 Combat Hostiles 3 | . . 3 Parts Melted 7 | . 1 6 Heat Transferred 3515 | . 1258 2257 Parts Sabotaged . | . . . Parts Stolen . | . . . Parts Stripped . | . . . Power Chain Reactions . | . . . Alert | -11 -10 -9 ------- Run | Yrd Mat Mat Maximum Alert Level . | . . . Low Security (%) 100 | 100 100 100 Level 1 . | . . . Level 2 . | . . . Level 3 . | . . . Level 4 . | . . . Level 5 . | . . . High Security . | . . . Max Security . | . . . Peak Influence 137 | . 42 137 Initial 3 | . . 3 Average 45 | . 11 80 Influence Increases 334 | . 93 241 Destroy 0b10 Robot/C 220 | . 40 180 Destroy 0b10 Robot/NC 25 | . 20 5 Destroy Leader 70 | . 18 52 Disable Machine 4 | . . 4 Lose Combat Pursuer 15 | . 15 . Influence Decreases 298 | . 82 216 Entered New Map 8 | . . 8 Time Decay 280 | . 82 198 Lost Part 10 | . . 10 Squads Dispatched . | . . . Investigation . | . . . Extermination . | . . . Reinforcement . | . . . Assault . | . . . Garrison . | . . . Intercept . | . . . Searches Triggered . | . . . Construction Impeded . | . . . Haulers Reinforced . | . . . Active Scanning Responses . | . . . Cargo Convoy Interrupts . | . . . Stealth | -11 -10 -9 --------- Run | Yrd Mat Mat Distress Signals 2 | . . 2 Communications Jammed . | . . . Distress Signals . | . . . Times Spotted 21 | . 7 14 Peak Tracking Total 6 | . 3 6 Tactical Retreats 1 | . 1 . Traps | -11 -10 -9 ------- Run | Yrd Mat Mat Traps Triggered 2 | . . 2 Indirectly 1 | . . 1 Trap Hack Attempts . | . . . Triggered . | . . . Disarmed . | . . . Reprogrammed . | . . . Reused . | . . . Traps Extracted . | . . . Installed . | . . . Triggered . | . . . Machines | -11 -10 -9 ---------- Run | Yrd Mat Mat Machines Disabled 1 | . . 1 Max in Single Turn 1 | . . 1 Machines Repaired . | . . . Machines Dismantled . | . . . Machines Sabotaged . | . . . Overloaded Fab Kills . | . . . Hacking | -11 -10 -9 --------- Run | Yrd Mat Mat Machines Accessed . | . . . Terminals . | . . . Fabricators . | . . . Repair Stations . | . . . Recycling Units . | . . . Scanalyzers . | . . . Garrison Access . | . . . Total Hacks . | . . . Successful . | . . . Failed . | . . . Catastrophic . | . . . Database Lockouts . | . . . Manual . | . . . Terminals . | . . . Fabricators . | . . . Repair Stations . | . . . Recycling Units . | . . . Scanalyzers . | . . . Garrison Access . | . . . Terminal Hacks . | . . . Fabricator Hacks . | . . . Repair Station Hacks . | . . . Recycling Unit Hacks . | . . . Scanalyzer . | . . . Garrison Access Hacks . | . . . Unauthorized Hacks . | . . . Terminals . | . . . Fabricators . | . . . Repair Stations . | . . . Recycling Units . | . . . Scanalyzers . | . . . Garrison Access . | . . . Data Cores Recovered . | . . . Used . | . . . Hacking Detections . | . . . Full Trace Events . | . . . Feedback Events . | . . . Feedback Blocked . | . . . Robot Schematics Acquired . | . . . Robots Built . | . . . Authchips . | . . . Time . | . . . Total Robot Build Rating . | . . . Part Schematics Acquired . | . . . Parts Built . | . . . Authchips . | . . . Time . | . . . Total Part Build Rating . | . . . Parts Repaired . | . . . Time . | . . . Parts Recycled . | . . . Recycled Matter . | . . . Retrieved Matter . | . . . Retrieved Components . | . . . Parts Scanalyzed . | . . . Part Schematics Acquired . | . . . Parts Damaged . | . . . Bothacking | -11 -10 -9 ------------ Run | Yrd Mat Mat Used RIF Installer . | . . . Robots Hacked . | . . . Non-combat . | . . . Combat . | . . . Robot Hacks Applied . | . . . Relay Couplers Released . | . . . Fabnet Peak Effective % . | . . . Robots Rewired . | . . . Allies Hacked . | . . . Hacks Repelled . | . . . Allies | -11 -10 -9 -------- Run | Yrd Mat Mat Total Allies . | . . . Largest Group . | . . . Highest-Rated Group . | . . . Highest-Rated Ally . | . . . Total Orders . | . . . Ally Attacks . | . . . Total Damage . | . . . Kills . | . . . Allies Corrupted . | . . . Allies Melted . | . . . Intel | -11 -10 -9 ------- Run | Yrd Mat Mat Active Infowar (turns) . | . . . Robot Analysis Total . | . . . Derelict Logs Recovered . | . . . Drone Launches . | . . . Drone Recoveries . | . . . Exploration | -11 -10 -9 ------------- Run | Yrd Mat Mat Turns Passed 547 | 61 202 284 Spaces Moved 292 | 43 107 142 Core 6 | 6 . . Treads . | . . . Legs 286 | 37 107 142 Wheels . | . . . Hover . | . . . Flight . | . . . Fastest Speed 50 | 50 120 120 Average Speed 118 | 110 120 120 Slowest Speed 120 | 120 120 120 Overloaded Moves . | . . . Propulsion Burnouts . | . . . Robots Hopped . | . . . Potential Cave-ins . | . . . Cave-ins Triggered . | . . . Exploration Rate (%) 18 | 3 28 25 Regions Visited 2 Branch Regions . Pre-discovered Areas . | . . . Known Exits Taken 2 | 1 1 . Unknown Exits Taken . | . . . Scrap Searched . | . . . Spaces Dug . | . . . Terrain Destroyed . | . . . Melee . | . . . Projectile . | . . . AOE . | . . . Terrain Rammed . | . . . Walls Destroyed . | . . . Machines Disabled . | . . . Actions | -11 -10 -9 --------- Run | Yrd Mat Mat Total 381 | 56 132 193 Wait 9 | . . 9 Move 290 | 42 106 142 Hop . | . . . Pick Up 12 | 7 1 4 Fast Attach . | . . . Attach 9 | 7 1 1 Detach . | . . . Swap 3 | . . 3 Drop 3 | . . 3 Fire 55 | . 24 31 Melee . | . . . Ram . | . . . Kick . | . . . Crush . | . . . Escape Stasis . | . . . Rewire . | . . . Trap . | . . . Miscellaneous . | . . . Route ------- -11/Scrapyard -10/Materials (discovered 2 exits: *Mat / *Min) -9/Materials (discovered 2 exits: *Min / *Sto) History --------- Turn | Location | Event 3 | -11/Scrapyard | Identified exit to Materials 3 | -11/Scrapyard | Discovered exit to Materials (range 16) 62 | -11/Scrapyard | Entered Materials 62 | -10/Materials | Evolved 1 slot: Utility x1 136 | -10/Materials | Identified exit to Mines 136 | -10/Materials | Discovered exit to Mines (range 7) 231 | -10/Materials | Identified exit to Materials 231 | -10/Materials | Discovered exit to Materials (range 14) 264 | -10/Materials | Entered another Materials area 264 | -9/Materials | Evolved 2 slots: Propulsion x1, Utility x1 264 | -9/Materials | Identified exit to Storage 264 | -9/Materials | Discovered exit to Storage (range 8) 308 | -9/Materials | Build established: Hacker-Mutant 424 | -9/Materials | Identified exit to Mines 424 | -9/Materials | Discovered exit to Mines (range 16) 548 | -9/Materials | Self-destructed Last Messages --------------- U-05 Engineer builds a Wall. U-05 Engineer lays Concrete. Acquired 10 matter. R-06 Scavenger collects Aluminum Leg. K-01 Serf collects debris. Lgt. Ion Engine destroyed. G-47 Trooper suffers critical hit (Burn). Aluminum Leg melted. G-47 Trooper destroyed. Neutrino Reactor explodes. Shock Trap short circuited. The floor emits a surge of raw power. W-16 Scout distress signal alerts nearby ally. U-05 Engineer lays Concrete. C-30 ARC bursts open, deploying its payload. G-47 Trooper unfolds itself. K-01 Serf collects debris. U-05 Engineer lays Concrete. Acquired EM Shotgun. Dropped Med. Laser. Map ----- +----------------------------------------------------+ | ????????????????# | | ????????????????# > | | ????????????????# | | ????????????????######## ######### | | ???????????????????????#######???????? | | ?????????????????????????????????????? | | ?????????????????????????????????????? | | ?????????????????????????????????????? | | ?????????????????????????????????????? | | ?????????????????????????????????##### | | ??????????????????????????????#### | | ?????????????????????????????? # | | ???????????????????????????? # | | ???????????????????????????? # | | ???????????????????????????? # | | ?????????????????????????????"" # | | ?????????????????????????????""" # | | ??????????????????????????????S" # | | ???????????????###+###???????? #+### | | ???????????????# ##########+## #?? | | ???????????????# % #?? | | ???????????????# #?? | | ???????????????# T | | ???????????????# ####+###### | | ?????????######## #?????????? | | ?????????# @ # #?????????? | | ?????????# # #?????????? | | ?????????# """ g ]]! #?????????? | | ?????????# """ #g ]!! #?????????? | | ?????????# """ # ]!! #?????????? | | ?????????# # #?????????? | | ?????????######## ^ #?????????? | | ????????????????# """ #?????????? | | ????????????????#^ """ "#?????????? | | ????????????????# """ %#?????????? | | ????????????????# "#?????????? | | ????????????????# #?????????? | | ????????????????# #?????????? | | ????????????????# #?????????? | | ????????????????# /?????????? | | ????????????????# #?????????? | | ?????????????????##T###??? ??????????? | | ?????????????????????????????????????? | | ?????????????????????????????????????? | | ?????????????????????????????????????? | | ?????????????????????????????????????? | | ?????????????????????????????????????? | | ?????????????????????????????????????? | | ?????????????????????????????????????? | | ?????????????????????????????????????? | +----------------------------------------------------+ Best States ------------- Heat Dissipation 42 Energy Generation 10 Energy Capacity 125 Matter Stores 300 Matter Capacity 300 Sight Range 16 Terrain Scan Density 10 Resistance: KI 35 Resistance: TH 35 Resistance: EX 35 Resistance: EM 35 Resistance: I 35 Resistance: S 35 Resistance: P 35 Power Shielding 33 Evasion (%) 55 Offensive Hacking 20 Item Schematics ----------------- None Robot Schematics ------------------ None Fabricated ------------ Nothing Repaired ---------- Nothing Alien Tech Used ----------------- None Achievements -------------- None Challenges ------------ None Game ------ Seed HackingSegregatorCore Manual? 0 Play Time 00:06:58 Cumulative 26.7 hours Start 2025.06.01 @ 02:25:54 End 2025.06.01 @ 02:39:28 Sessions 1 Manual Loads 0 Difficulty Explorer Special Mode None Game No. 27 Rogue 0 Adventurer 0 Explorer 27 Win Type - Total 0 Types 0/0/0/0/0/0/0/0/0/0 Lore% 13 Gallery% 34 Achievement% 34 Wizard Run 0 Options --------- Layout 1 ASCII 0 Keyboard 0 Movement Mouse Keybinds 0 Fullscreen 1 Font 42/SmallcapsGlow Map View 52x41 Zoom Use 0% Tactical HUD 0 Map Filters NONE Filters NONE Steam 1 RUN: bd9c8bfa-afd8-43b3-9379-28af4a471312